bitfinex/quotes_BTCUSD_20241111
["timestamp","ask_amount","ask_price","bid_price","bid_amount"]
[1731324244972,0.05506941,82073.0,82072.0,0.01383164]
[1731324245642,1.55506941,82073.0,82072.0,0.01383164]
[1731324246050,1.55506941,82073.0,82072.0,0.13567564]
[1731324246682,1.55506941,82073.0,82072.0,0.01383164]
[1731324247477,1.55306941,82073.0,82072.0,0.01383164]
[1731324247874,1.55506941,82073.0,82072.0,0.01383164]
[1731324248080,1.55306941,82073.0,82072.0,0.01383164]
[1731324248237,1.55506941,82073.0,82072.0,0.13567564]
[1731324248762,0.05506941,82073.0,82072.0,0.13567564]
[1731324249166,1.55506941,82073.0,82072.0,0.13567564]
[1731324249728,0.04806941,82073.0,82072.0,0.13567564]
[1731324249971,0.243657,82083.0,82072.0,0.13567564]
[1731324249972,0.00236941,82074.0,82073.0,0.221842]
[1731324250161,0.0483,82083.0,82082.0,0.121829]
[1731324250162,0.00244078,82083.0,82082.0,0.121829]
[1731324250361,0.002,82085.0,82072.0,0.01383164]
[1731324250362,0.00236941,82085.0,82083.0,0.121827]
[1731324250565,0.00236941,82093.0,82092.0,0.121814]
[1731324250738,0.00236941,82093.0,82092.0,0.221814]
[1731324251141,0.000844,82094.0,82093.0,0.244813]
[1731324251365,0.000844,82094.0,82093.0,0.37075521]
[1731324251764,0.000844,82094.0,82093.0,0.37435635]
[1731324252345,0.000844,82094.0,82093.0,0.38479944]
[1731324252549,0.000844,82094.0,82093.0,0.34775521]
[1731324252793,0.00035289,82094.0,82093.0,0.34775521]
[1731324254798,0.00035289,82094.0,82093.0,0.42495521]
[1731324255306,0.00035289,82094.0,82093.0,0.44940222]
[1731324256868,0.00035289,82094.0,82093.0,0.49520222]
[1731324257456,0.000568,82097.0,82096.0,0.221808]
[1731324257677,0.000568,82097.0,82096.0,0.51543768]
[1731324258727,0.000568,82097.0,82096.0,0.34775021]
[1731324260577,0.000568,82097.0,82096.0,0.51543768]
[1731324260982,0.00062404,82097.0,82096.0,0.51543768]
[1731324261700,0.00062404,82097.0,82096.0,0.221808]
[1731324265669,0.00062404,82097.0,82096.0,0.24233589]
[1731324267409,0.00062404,82097.0,82096.0,0.24233643]
[1731324267680,0.00062404,82097.0,82096.0,0.36827864]
[1731324268414,0.00146804,82097.0,82096.0,0.36827864]
[1731324269901,0.6823,82106.0,82105.0,0.121795]
[1731324270098,0.6823,82106.0,82105.0,0.221795]
[1731324270746,0.6823,82106.0,82105.0,0.34773721]
[1731324271184,1.5,82108.0,82107.0,0.221792]
[1731324271589,0.00069,82112.0,82111.0,0.221786]
[1731324273235,0.00069,82112.0,82111.0,0.244786]
[1731324273406,0.00069,82112.0,82111.0,0.26517635]
[1731324273850,0.00069,82112.0,82111.0,0.28556467]
[1731324274265,0.00069,82112.0,82111.0,0.26256467]
[1731324276020,0.00069,82112.0,82111.0,0.27444819]
[1731324276223,0.001068,82112.0,82111.0,0.27444819]
[1731324276432,0.001068,82112.0,82111.0,0.4003904]
[1731324278285,1e-08,82112.0,82111.0,0.4233904]
[1731324278476,1e-08,82112.0,82111.0,0.5458904]
[1731324278911,0.01,82117.0,82111.0,0.5458904]
[1731324278912,0.00996001,82117.0,82116.0,0.121778]
[1731324279125,0.00996001,82117.0,82116.0,0.53579803]
[1731324279326,0.00996001,82117.0,82116.0,0.36811056]
[1731324280855,0.00996001,82117.0,82116.0,0.39116983]
[1731324282051,0.01080401,82117.0,82116.0,0.39116983]
[1731324282406,0.01080401,82117.0,82116.0,0.36816983]
[1731324282615,0.01080401,82117.0,82116.0,0.24222762]
[1731324283881,0.08750401,82117.0,82116.0,0.24222762]
[1731324286854,0.09187342,82117.0,82116.0,0.24222762]
[1731324287286,0.08987342,82117.0,82116.0,0.24222762]
[1731324287941,0.08987342,82117.0,82116.0,0.24221495]
[1731324288798,0.09187342,82117.0,82116.0,0.24221495]
[1731324289000,0.08987342,82117.0,82116.0,0.24221495]
[1731324290654,0.08987342,82117.0,82116.0,0.24300495]
[1731324291829,0.09187342,82117.0,82116.0,0.222568]
[1731324292372,0.08987342,82117.0,82116.0,0.222568]
[1731324292909,0.08987342,82117.0,82116.0,0.24300851]
[1731324293815,0.08987342,82117.0,82116.0,0.222568]
[1731324294379,0.08987342,82117.0,82116.0,0.224256]
[1731324296936,0.01317342,82117.0,82116.0,0.224256]
[1731324300581,0.01317342,82117.0,82116.0,0.35019821]
[1731324301397,0.01080401,82117.0,82116.0,0.35019821]
[1731324301603,0.01317342,82117.0,82116.0,0.38725447]
[1731324301966,0.11912059,82122.0,82117.0,0.1]
[1731324302171,0.0772,82128.0,82123.0,0.221768]
[1731324302384,1.00236941,82124.0,82123.0,0.221768]
[1731324303903,1.00236941,82124.0,82123.0,0.24223229]
[1731324304810,1.00236941,82124.0,82123.0,0.221768]
[1731324305452,1.00236941,82124.0,82123.0,0.23408287]
[1731324306736,1.0,82124.0,82123.0,0.23408287]
[1731324306894,1.00321341,82124.0,82123.0,0.23408287]
[1731324307499,0.94614152,82124.0,82123.0,0.23408287]
[1731324307709,0.94851093,82124.0,82123.0,0.23408287]
[1731324307931,0.94614152,82124.0,82123.0,0.25454199]
[1731324309021,0.94614152,82124.0,82123.0,0.23408287]
[1731324309242,0.94851093,82124.0,82123.0,0.23408287]
[1731324309661,0.94614152,82124.0,82123.0,0.23408287]
[1731324310852,0.94614152,82124.0,82123.0,0.34403986]
[1731324311053,0.92161097,82124.0,82123.0,0.34403986]
[1731324311461,0.82161097,82124.0,82123.0,0.34403986]
[1731324312290,0.82161097,82124.0,82123.0,0.36002508]
[1731324312517,0.78633396,82124.0,82123.0,0.46998207]
[1731324313899,0.75858396,82124.0,82123.0,0.46998207]
[1731324315152,0.70709502,82124.0,82123.0,0.46998207]
[1731324319800,0.70709502,82124.0,82123.0,0.83528207]
[1731324323064,0.67921502,82124.0,82123.0,0.83528207]
[1731324323921,0.66949776,82124.0,82123.0,0.83528207]
[1731324327199,0.66578725,82124.0,82123.0,0.83528207]
[1731324327423,0.66578725,82124.0,82123.0,0.85828207]
[1731324327592,0.66578725,82124.0,82123.0,0.8953245]
[1731324328020,0.66578725,82124.0,82123.0,0.80583383]
[1731324328223,0.66578725,82124.0,82123.0,0.91579082]
[1731324329878,0.66578725,82124.0,82123.0,0.91747882]
[1731324332337,0.66578725,82124.0,82123.0,0.8970125]
[1731324333142,0.66578725,82124.0,82123.0,0.95025587]
[1731324334135,0.66578725,82124.0,82123.0,0.80753031]
[1731324334336,0.66578725,82124.0,82123.0,0.9174873]
[1731324334853,0.66578725,82124.0,82123.0,0.80753031]
[1731324335055,0.66578725,82124.0,82123.0,0.9174873]
[1731324339024,0.65848262,82124.0,82123.0,0.9174873]
[1731324339424,0.65848262,82124.0,82123.0,0.9661853]
[1731324339947,0.65848262,82124.0,82123.0,0.96617735]
[1731324341527,0.6508757,82124.0,82123.0,0.96617735]
[1731324343733,0.6508757,82124.0,82123.0,0.96597735]
[1731324344001,0.6508757,82124.0,82123.0,0.9659761]
[1731324344553,0.6508757,82124.0,82123.0,1.07593309]
[1731324344756,0.6508757,82124.0,82123.0,0.9659761]
[1731324346452,0.64534602,82124.0,82123.0,0.9659761]
[1731324347339,0.64534602,82124.0,82123.0,0.98644091]
[1731324347507,0.64534602,82124.0,82123.0,0.96597531]
[1731324348767,0.63706351,82124.0,82123.0,0.96597531]
[1731324350402,0.63028353,82124.0,82123.0,0.96597531]
[1731324350607,0.62633285,82124.0,82123.0,0.96597531]
[1731324353289,0.54540721,82124.0,82123.0,0.96597531]
[1731324355948,0.54501088,82124.0,82123.0,0.96597531]
[1731324356568,0.53995881,82124.0,82123.0,0.96597531]
[1731324357211,0.53517829,82124.0,82123.0,0.96597531]
[1731324357764,0.52879829,82124.0,82123.0,0.96597531]
[1731324357967,0.52879829,82124.0,82123.0,0.96157879]
[1731324358168,0.52470829,82124.0,82123.0,0.96157879]
[1731324358803,0.51434829,82124.0,82123.0,0.96157879]
[1731324359269,0.51011829,82124.0,82123.0,0.96157879]
[1731324359684,0.50511829,82124.0,82123.0,0.96158072]
[1731324360534,0.50511829,82124.0,82123.0,0.85162373]
[1731324360535,0.45229417,82124.0,82123.0,0.85162373]
[1731324360755,0.45229417,82124.0,82123.0,0.96158072]
[1731324362834,0.41972156,82124.0,82123.0,0.96158072]
[1731324364885,0.15391003,82124.0,82123.0,0.96158072]
[1731324365377,0.13364904,82124.0,82123.0,1.10347965]
[1731324365522,0.13364904,82124.0,82123.0,1.10348452]
[1731324365523,0.00728905,82124.0,82123.0,1.10348452]
[1731324366152,0.04967549,82135.0,82134.0,0.121752]
[1731324366374,0.04967549,82135.0,82134.0,0.6110798]
[1731324366594,0.04967549,82135.0,82134.0,0.9763398]
[1731324367995,0.049,82136.0,82135.0,0.24475]
[1731324368132,0.049,82136.0,82135.0,0.43065471]
[1731324368335,0.049,82136.0,82135.0,0.79347007]
[1731324369744,0.00069,82156.0,82155.0,0.121721]
[1731324369949,0.00236941,82164.0,82162.0,0.1]
[1731324370154,0.00236941,82164.0,82163.0,0.3521376]
[1731324370363,0.00236941,82166.0,82163.0,0.5955586]
[1731324370659,0.002,82171.0,82164.0,0.24212145]
[1731324370660,0.00236941,82165.0,82164.0,0.24212145]
[1731324370912,0.00236941,82165.0,82164.0,0.35207844]
[1731324371122,0.00436941,82165.0,82164.0,0.60724145]
[1731324371342,0.00436941,82165.0,82164.0,0.51808576]
[1731324371487,0.00681019,82165.0,82164.0,0.63979276]
[1731324371889,0.00436941,82165.0,82164.0,0.51808576]
[1731324372094,0.00681019,82165.0,82164.0,0.63979276]
[1731324372307,0.00681019,82165.0,82164.0,0.6519005]
[1731324372636,0.00436941,82165.0,82164.0,0.6519005]
[1731324372848,0.13076941,82165.0,82164.0,0.6519005]
[1731324373454,1.63076941,82165.0,82164.0,0.6519005]
[1731324375145,1.63161341,82165.0,82164.0,0.6519005]
[1731324376043,0.12961341,82165.0,82164.0,0.6519005]
[1731324376771,0.13161341,82165.0,82164.0,0.6519005]
[1731324377646,1.63161341,82165.0,82164.0,0.6519005]
[1731324377863,1.63161341,82165.0,82164.0,0.5301935]
[1731324378093,1.63661341,82165.0,82164.0,0.5301935]
[1731324378546,1.63661341,82165.0,82164.0,0.49764219]
[1731324379654,1.63661341,82165.0,82164.0,0.47722774]
[1731324380093,1.63661341,82165.0,82164.0,0.49753694]
[1731324381735,1.63661341,82165.0,82164.0,0.61924394]
[1731324383287,0.13661341,82165.0,82164.0,0.61924394]
[1731324383611,0.13461341,82165.0,82164.0,0.65173799]
[1731324383819,0.12961341,82165.0,82164.0,0.76169498]
[1731324384179,0.12961341,82165.0,82164.0,0.65173799]
[1731324384576,0.13161341,82165.0,82164.0,0.65173799]
[1731324385190,0.12961341,82165.0,82164.0,0.65173799]
[1731324387194,1.62961341,82165.0,82164.0,0.65173799]
[1731324387393,1.63161341,82165.0,82164.0,0.65173799]
[1731324389049,1.62961341,82165.0,82164.0,0.65173799]
[1731324389258,1.63161341,82165.0,82164.0,0.65173799]
[1731324390272,1.63161341,82165.0,82164.0,0.65173999]
[1731324392201,1.62961341,82165.0,82164.0,0.65173999]
[1731324393758,1.62961341,82165.0,82164.0,0.65127232]
[1731324394173,1.63161341,82165.0,82164.0,0.65127232]
[1731324394382,1.62961341,82165.0,82164.0,0.65127232]
[1731324394602,1.63161341,82165.0,82164.0,0.65127232]
[1731324394818,1.62961341,82165.0,82164.0,0.65127232]
[1731324397553,0.046344,82165.0,82164.0,0.65127232]
[1731324397760,0.046344,82165.0,82164.0,0.64527232]
[1731324398210,1.546344,82165.0,82164.0,0.64527232]
[1731324398413,1.54871341,82165.0,82164.0,0.64527232]
[1731324400911,1.55071341,82165.0,82164.0,0.59293474]
[1731324401115,0.04871341,82165.0,82164.0,0.64531988]
[1731324401562,1.54871341,82165.0,82164.0,0.64531988]
[1731324403939,1.55071341,82165.0,82164.0,0.64531988]
[1731324404647,0.05071341,82165.0,82164.0,0.64531988]
[1731324404872,0.04871341,82165.0,82164.0,0.64531988]
[1731324405114,1.54871341,82165.0,82164.0,0.64531988]
[1731324405341,1.54871341,82165.0,82164.0,0.69400288]
[1731324407032,0.04871341,82165.0,82164.0,0.69400288]
[1731324407490,0.00321341,82165.0,82164.0,0.69400288]
[1731324409893,0.00321341,82165.0,82164.0,0.64531988]
[1731324410648,0.00521341,82165.0,82164.0,0.64531988]
[1731324410845,0.00321341,82165.0,82164.0,0.64531988]
[1731324411047,1.50321341,82165.0,82164.0,0.64531988]
[1731324411785,1.50321341,82165.0,82164.0,0.64534876]
[1731324413222,1.63961341,82165.0,82164.0,0.62034876]
[1731324413425,1.64161341,82165.0,82164.0,0.62034876]
[1731324413910,1.64161341,82165.0,82164.0,0.58809386]
[1731324414849,1.63461341,82165.0,82164.0,0.58809386]
[1731324415597,1.637244,82165.0,82164.0,0.58809386]
[1731324415797,1.63961341,82165.0,82164.0,0.58809386]
[1731324416711,1.63461341,82165.0,82164.0,0.58809386]
[1731324417333,1.63961341,82165.0,82164.0,0.58809386]
[1731324417543,1.55141341,82165.0,82164.0,0.58809386]
[1731324417753,0.05141341,82165.0,82164.0,0.58809386]
[1731324419879,0.00321341,82165.0,82164.0,0.58809386]
[1731324420860,0.00321341,82165.0,82164.0,0.58978186]
[1731324422862,0.000844,82165.0,82164.0,0.58978186]
[1731324423098,0.0753,82175.0,82174.0,0.221692]
[1731324423099,0.05116941,82175.0,82174.0,0.221692]
[1731324423314,0.08549,82180.0,82179.0,0.221685]
[1731324423315,0.08749,82180.0,82179.0,0.221685]
[1731324423528,0.08749,82180.0,82179.0,0.24184412]
[1731324423529,0.08549,82180.0,82179.0,0.24184412]
[1731324423736,0.08749,82180.0,82179.0,0.24184412]
[1731324424081,1.58749,82180.0,82179.0,0.24184412]
[1731324426204,1.63519,82180.0,82179.0,0.25417996]
[1731324426441,1.63719,82180.0,82179.0,0.25417996]
[1731324428506,1.63719,82180.0,82179.0,0.25017996]
[1731324430918,0.13719,82180.0,82179.0,0.25017996]
[1731324431334,1.63719,82180.0,82179.0,0.25017996]
[1731324433006,1.63719,82180.0,82179.0,0.25006885]
[1731324434367,0.13719,82180.0,82179.0,0.25006885]
[1731324434811,1.63719,82180.0,82179.0,0.25006885]
[1731324436952,1.74714699,82180.0,82179.0,0.25006885]
[1731324438681,1.74714699,82180.0,82179.0,0.03238385]
[1731324439517,1.86883099,82180.0,82179.0,0.03238385]
[1731324439953,1.74714699,82180.0,82179.0,0.03238385]
[1731324441719,1.63719,82180.0,82179.0,0.25406885]
[1731324442720,1.63719,82180.0,82179.0,0.15406885]
[1731324442921,1.63519,82180.0,82179.0,0.25406885]
[1731324443365,1.63719,82180.0,82179.0,0.25406885]
[1731324444232,1.63719,82180.0,82179.0,0.25575685]
[1731324445584,1.63669,82180.0,82179.0,0.25575685]
[1731324447207,1.63669,82180.0,82179.0,0.23570884]
[1731324447418,1.63669,82180.0,82179.0,0.25578294]
[1731324451438,1.55989,82180.0,82179.0,0.25578294]
[1731324451648,1.51019,82180.0,82179.0,0.25578294]
[1731324453947,1.51019,82180.0,82179.0,0.23570884]
[1731324454455,1.51019,82180.0,82179.0,0.25579065]
[1731324456199,1.50819,82180.0,82179.0,0.25579065]
[1731324456570,1.51019,82180.0,82179.0,0.62085065]
[1731324463527,1.51019,82180.0,82179.0,0.62082136]
[1731324467475,1.62014699,82180.0,82179.0,0.62082136]
[1731324471206,1.51019,82180.0,82179.0,0.62082136]
[1731324472737,1.51019,82180.0,82179.0,0.60076884]
[1731324472901,1.51019,82180.0,82179.0,0.62083422]
[1731324476067,1.51019,82180.0,82179.0,0.62084087]
[1731324476350,1.51019,82180.0,82179.0,0.60076884]
[1731324476526,1.51019,82180.0,82179.0,0.62084083]
[1731324480293,0.01019,82180.0,82179.0,0.62084083]
[1731324480429,0.00819,82180.0,82179.0,0.62084083]
[1731324481414,0.00519,82180.0,82179.0,0.62084083]
[1731324481822,0.00719,82180.0,82179.0,0.62084083]
[1731324482086,0.00719,82180.0,82179.0,0.62056773]
[1731324482288,0.00519,82180.0,82179.0,0.62056773]
[1731324482499,0.00719,82180.0,82179.0,0.62056773]
[1731324484238,1.50719,82180.0,82179.0,0.62056773]
[1731324486951,1.50719,82180.0,82179.0,0.62055841]
[1731324487148,1.73590332,82180.0,82179.0,0.49887341]
[1731324487379,1.95358011,82180.0,82179.0,0.49887341]
[1731324487575,1.95359585,82180.0,82179.0,0.49887341]
[1731324488000,1.88066744,82180.0,82179.0,0.49887341]
[1731324488266,1.95359585,82180.0,82179.0,0.49887341]
[1731324488504,1.95358105,82180.0,82179.0,0.49887341]
[1731324489203,1.95442505,82180.0,82179.0,0.49887341]
[1731324489652,1.88149613,82180.0,82179.0,0.47881074]
[1731324489859,1.95442505,82180.0,82179.0,0.47881074]
[1731324490064,1.95442505,82180.0,82179.0,0.4988539]
[1731324490485,1.88149613,82180.0,82179.0,0.4988539]
[1731324490704,1.88149613,82180.0,82179.0,0.45821305]
[1731324490923,1.80157237,82180.0,82179.0,0.41885556]
[1731324491148,1.80157237,82180.0,82179.0,0.4312004]
[1731324491371,1.69161538,82180.0,82179.0,0.4312004]
[1731324491598,1.80157237,82180.0,82179.0,0.4312004]
[1731324491942,1.74689099,82180.0,82179.0,0.4312004]
[1731324492329,1.74689099,82180.0,82179.0,0.43115617]
[1731324492968,1.80156455,82180.0,82179.0,0.53115617]
[1731324493165,1.92324855,82180.0,82179.0,0.53115617]
[1731324493609,1.86857499,82180.0,82179.0,0.53115617]
[1731324494086,2.00311973,82180.0,82179.0,0.53115617]
[1731324494309,1.80156255,82180.0,82179.0,0.53115617]
[1731324494700,1.92324655,82180.0,82179.0,0.53115617]
[1731324494946,2.10981147,82180.0,82179.0,0.53115617]
[1731324495131,2.30963363,82180.0,82179.0,0.43115617]
[1731324495275,2.38253172,82180.0,82179.0,0.43115617]
[1731324495477,2.19967664,82180.0,82179.0,0.43115617]
[1731324495778,0.269506,82165.0,82164.0,0.001688]
[1731324495991,0.49806059,82165.0,82164.0,0.001688]
[1731324496333,0.017,82161.0,82160.0,0.047495]
[1731324496533,0.50785198,82161.0,82160.0,0.047495]
[1731324496758,0.5074112,82161.0,82160.0,0.047495]
[1731324496939,0.5074112,82161.0,82159.0,0.001688]
[1731324496940,0.269513,82160.0,82159.0,0.001688]
[1731324497184,0.65827673,82160.0,82159.0,0.001688]
[1731324497423,0.37448899,82147.0,82132.0,0.24351]
[1731324497622,0.37448899,82147.0,82130.0,0.243514]
[1731324497623,2.0004312,82147.0,82130.0,0.243514]
[1731324497751,0.007,82136.0,82135.0,0.30475829]
[1731324497953,0.11695699,82136.0,82135.0,0.30475829]
[1731324498365,0.11695699,82136.0,82135.0,0.12175]
[1731324498366,0.007,82136.0,82135.0,0.12175]
[1731324498770,0.007,82136.0,82135.0,0.22175]
[1731324499647,0.00944078,82136.0,82135.0,0.22175]
[1731324499805,0.007,82136.0,82135.0,0.22175]
[1731324500416,0.007,82136.0,82135.0,0.223438]
[1731324500623,0.005,82136.0,82135.0,0.23535267]
[1731324500977,0.005,82139.0,82138.0,0.121746]
[1731324501183,0.0541,82154.0,82138.0,0.121746]
[1731324501184,0.005,82148.0,82146.0,0.121734]
[1731324501388,0.005,82152.0,82148.0,0.1]
[1731324501598,0.00244078,82159.0,82148.0,0.1]
[1731324501599,0.005,82153.0,82152.0,0.221725]
[1731324502250,0.005,82158.0,82157.0,0.221718]
[1731324502514,0.005,82169.0,82157.0,0.221718]
[1731324502515,0.005,82160.0,82159.0,0.121715]
[1731324502674,0.005,82160.0,82159.0,0.221715]
[1731324503102,0.01,82159.0,82158.0,0.03194357]
[1731324503313,0.012,82158.0,82157.0,0.01240183]
[1731324503523,0.007,82152.0,82151.0,0.28300829]
[1731324503685,0.00944078,82152.0,82151.0,0.31495186]
[1731324503892,0.00944078,82152.0,82151.0,0.13194357]
[1731324504285,0.00944078,82152.0,82151.0,0.1]
[1731324504286,0.13538299,82152.0,82151.0,0.1]
[1731324504681,0.002,82146.0,82145.0,0.221735]
[1731324504925,0.002,82146.0,82145.0,0.25367857]
[1731324505759,0.005,82147.0,82146.0,0.221734]
[1731324507824,0.005,82147.0,82146.0,0.22759351]
[1731324508952,0.005,82149.0,82148.0,0.221731]
[1731324509186,0.007,82149.0,82148.0,0.24159051]
[1731324509843,0.005,82149.0,82148.0,0.24159051]
[1731324510161,0.005,82149.0,82148.0,0.27353408]
[1731324511546,0.007,82149.0,82148.0,0.27353408]
[1731324512086,0.005,82149.0,82148.0,0.27522208]
[1731324512914,0.005,82149.0,82148.0,0.26240434]
[1731324513499,0.005,82149.0,82148.0,0.05349108]
[1731324513996,0.005,82149.0,82148.0,0.17522208]
[1731324514450,0.005,82149.0,82148.0,0.123419]
[1731324514664,1.505,82149.0,82148.0,0.123419]
[1731324515064,1.505,82149.0,82148.0,0.1750915]
[1731324515474,1.505,82149.0,82148.0,0.2750915]
[1731324516061,1.505,82149.0,82148.0,0.223419]
[1731324516230,1.5,82149.0,82148.0,0.223419]
[1731324516424,0.005,82154.0,82153.0,0.121724]
[1731324516642,0.005,82154.0,82153.0,0.25352835]
[1731324516846,0.005,82154.0,82153.0,0.27340586]
[1731324517061,1.505,82154.0,82153.0,0.27340586]
[1731324519091,1.505,82154.0,82153.0,0.221724]
[1731324520146,0.005,82154.0,82153.0,0.221724]
[1731324520555,1.505,82154.0,82153.0,0.27342637]
[1731324520910,1.507,82154.0,82153.0,0.27342637]
[1731324521723,1.5866,82154.0,82153.0,0.27344866]
[1731324521997,1.5866,82154.0,82153.0,0.28310103]
[1731324524521,1.507,82154.0,82153.0,0.28310103]
[1731324525683,0.007845,82154.0,82153.0,0.28310103]
[1731324525876,0.005845,82154.0,82153.0,0.28310103]
[1731324526277,0.007845,82154.0,82153.0,0.26322767]
[1731324526622,0.007845,82154.0,82153.0,0.28313452]
[1731324526802,0.007845,82154.0,82153.0,0.28314158]
[1731324526974,0.005845,82154.0,82153.0,0.28314158]
[1731324527846,0.007845,82154.0,82153.0,0.28314158]
[1731324528158,0.005845,82154.0,82153.0,0.28314158]
[1731324529736,0.000845,82154.0,82153.0,0.28314158]
[1731324531254,0.000845,82154.0,82153.0,0.28677758]
[1731324531461,0.000845,82154.0,82153.0,0.28177758]
[1731324531882,0.005,82156.0,82155.0,0.221721]
[1731324532081,0.005,82156.0,82155.0,0.27348621]
[1731324533310,0.002,82168.0,82155.0,0.15176521]
[1731324533511,0.005,82157.0,82156.0,0.05176521]
[1731324533776,0.005,82158.0,82157.0,0.1]
[1731324533892,0.005,82158.0,82157.0,0.27348321]
[1731324534506,0.005,82158.0,82157.0,0.28255976]
[1731324535035,0.005,82158.0,82157.0,0.28256258]
[1731324535622,0.005,82158.0,82157.0,0.27348603]
[1731324538398,0.005845,82158.0,82157.0,0.27348603]
[1731324539895,0.007845,82158.0,82157.0,0.27348603]
[1731324540675,0.007845,82158.0,82157.0,0.27345194]
[1731324542060,0.005845,82158.0,82157.0,0.27345194]
[1731324542257,0.007845,82158.0,82157.0,0.27345769]
[1731324543897,0.005845,82158.0,82157.0,0.27345769]
[1731324544649,0.007845,82158.0,82157.0,0.27345769]
[1731324545955,0.007845,82158.0,82157.0,0.27347285]
[1731324547837,0.006382,82158.0,82157.0,0.27347285]
[1731324549768,0.006382,82158.0,82157.0,0.27351445]
[1731324550666,0.004382,82158.0,82157.0,0.27351445]
[1731324552254,0.004382,82158.0,82157.0,0.27348331]
[1731324553985,0.006382,82158.0,82157.0,0.27348331]
[1731324557068,0.004382,82158.0,82157.0,0.27348331]
[1731324560247,0.006382,82158.0,82157.0,0.27348331]
[1731324560756,0.38454021,82158.0,82157.0,0.05176531]
[1731324561235,1.76282421,82158.0,82157.0,0.05345331]
[1731324561447,1.79927208,82158.0,82157.0,0.05345331]
[1731324561663,1.79927208,82158.0,82157.0,0.001688]
[1731324561913,1.76282421,82158.0,82157.0,0.05344819]
[1731324562354,1.88454021,82158.0,82157.0,0.05344819]
[1731324562592,1.76282421,82158.0,82157.0,0.05344819]
[1731324563428,1.88454021,82158.0,82157.0,0.05344819]
[1731324564127,1.76282421,82158.0,82157.0,0.05344819]
[1731324564826,1.76282421,82158.0,82157.0,0.15344819]
[1731324565044,1.76282421,82158.0,82157.0,0.27516619]
[1731324565045,1.631882,82158.0,82157.0,0.27516619]
[1731324565289,0.006382,82158.0,82157.0,0.27516619]
[1731324566132,0.004382,82158.0,82157.0,0.27516619]
[1731324566808,0.000845,82158.0,82157.0,0.35436619]
[1731324569087,0.000845,82158.0,82157.0,0.27516619]
[1731324571030,0.004382,82158.0,82157.0,0.27516619]
[1731324571726,0.006382,82158.0,82157.0,0.27516619]
[1731324571933,0.004382,82158.0,82157.0,0.27516619]
[1731324572392,0.006382,82158.0,82157.0,0.27516619]
[1731324576085,0.004382,82158.0,82157.0,0.27516619]
[1731324576506,0.004382,82158.0,82157.0,0.223406]
[1731324577137,0.004382,82158.0,82157.0,0.27507268]
[1731324577345,0.004382,82158.0,82157.0,0.223406]
[1731324578661,0.004382,82158.0,82157.0,0.2432284]
[1731324578891,0.001382,82165.0,82157.0,0.15322658]
[1731324579102,0.001382,82165.0,82164.0,0.221707]
[1731324579477,0.001382,82165.0,82164.0,0.27324558]
[1731324579678,1.48914217,82173.0,82164.0,0.15153858]
[1731324579883,1.48914217,82173.0,82172.0,0.221695]
[1731324580127,1.48914217,82173.0,82172.0,0.27323358]
[1731324585058,1.48998617,82173.0,82172.0,0.27323358]
[1731324589343,1.48998617,82173.0,82172.0,0.27253358]
[1731324589877,1.48998617,82173.0,82172.0,0.30423011]
[1731324591480,1.48998617,82173.0,82172.0,0.27253358]
[1731324592620,1.48998617,82173.0,82172.0,0.29473358]
[1731324594757,0.000844,82173.0,82172.0,0.25228713]
[1731324594965,0.000844,82173.0,82172.0,0.30389051]
[1731324596247,0.000844,82173.0,82172.0,0.28169051]
[1731324596561,0.000844,82173.0,82172.0,0.28337851]
[1731324597204,0.0773,82177.0,82176.0,0.22169]
[1731324597474,0.0773,82177.0,82176.0,0.28238551]
[1731324598253,1.5773,82177.0,82176.0,0.28238551]
[1731324598445,1.5773,82177.0,82176.0,0.27329338]
[1731324598645,1.5773,82177.0,82176.0,0.2823946]
[1731324599244,1.5773,82177.0,82176.0,0.22169]
[1731324600073,1.5,82177.0,82176.0,0.22169]
[1731324600481,1.5,82177.0,82176.0,0.23078662]
[1731324600740,1.5,82177.0,82176.0,0.26255974]
[1731324600946,1.5,82177.0,82176.0,0.28241772]
[1731324601136,1.5,82177.0,82176.0,0.06072772]
[1731324601301,1.5,82177.0,82176.0,0.28241772]
[1731324601469,1.5,82177.0,82176.0,0.2733211]
[1731324602574,1.5,82177.0,82176.0,0.28241875]
[1731324604019,0.0017236,82179.0,82176.0,0.16072875]
[1731324604220,0.0017236,82179.0,82178.0,0.25344848]
[1731324604503,0.0017236,82179.0,82178.0,0.31417723]
[1731324605159,1.5017236,82179.0,82178.0,0.19249023]
[1731324605332,1.5017236,82179.0,82178.0,0.09249023]
[1731324605488,1.5017236,82179.0,82178.0,0.31417723]
[1731324606120,1.5017236,82179.0,82178.0,0.28241575]
[1731324608729,1.5025676,82179.0,82178.0,0.28241575]
[1731324609153,0.0025676,82179.0,82178.0,0.28241575]
[1731324610287,0.0018676,82179.0,82178.0,0.28241575]
[1731324610708,0.0018676,82179.0,82178.0,0.2733181]
[1731324610928,1.5018676,82179.0,82178.0,0.2733181]
[1731324614346,1.5018676,82179.0,82178.0,0.1516311]
[1731324614542,1.5018676,82179.0,82178.0,0.2733181]
[1731324614758,1.5018676,82179.0,82178.0,0.1516311]
[1731324615046,1.5018676,82179.0,82178.0,0.2733181]
[1731324616835,1.5018676,82179.0,82178.0,0.221687]
[1731324617003,1.5018676,82179.0,82178.0,0.27329447]
[1731324619258,1.5018676,82179.0,82178.0,0.17329447]
[1731324621186,1.5018676,82179.0,82178.0,0.27329447]
[1731324622020,1.5480676,82179.0,82178.0,0.27329447]
[1731324622354,1.6309676,82179.0,82178.0,0.05329547]
[1731324622525,1.6309676,82179.0,82178.0,0.27498247]
[1731324622890,0.1309676,82179.0,82178.0,0.27498247]
[1731324623135,0.38359481,82179.0,82178.0,0.15329547]
[1731324623340,1.92579633,82179.0,82178.0,0.05329547]
[1731324624178,1.88859481,82179.0,82178.0,0.05329547]
[1731324625346,1.76190981,82179.0,82178.0,0.05329547]
[1731324625775,1.76190981,82179.0,82178.0,0.17498247]
[1731324626669,1.76690981,82179.0,82178.0,0.17498247]
[1731324627078,1.76190981,82179.0,82178.0,0.17498247]
[1731324627308,1.76690981,82179.0,82178.0,0.17498247]
[1731324627904,1.76190981,82179.0,82178.0,0.17498247]
[1731324628078,1.62780981,82179.0,82178.0,0.17498247]
[1731324628829,1.5068676,82179.0,82178.0,0.17498247]
[1731324629214,1.5068676,82179.0,82178.0,0.05329547]
[1731324629394,2.05385023,82179.0,82178.0,0.05329547]
[1731324629734,2.14030365,82179.0,82178.0,0.05329547]
[1731324629947,2.17673947,82179.0,82178.0,0.05329547]
[1731324630391,2.27480898,82179.0,82178.0,0.05329547]